[Event "Titled Tuesday Blitz January 03 Early 2023"]
[White "Kuchava, Ana"]
[Black "Salman, Pavel"]
[WhiteFideId "13605348"]
[BlackFideId "24153753"]
[WhiteElo "2101"]
[BlackElo "2287"]
[Result "1-0"]
[Round "02"]
[TimeControl "180+2"]
[Date "2023.01.03"]
[WhiteClock "0:02:05"]
[BlackClock "0:01:33"]

1. d4 {[%clk 0:03:00]}  Nf6 {[%clk 0:02:54]} 2. Nf3 {[%clk 0:03:00]}  c5 {[%clk 0:02:55]} 3. d5 {[%clk 0:03:00]}  b5 {[%clk 0:02:52]} 4. Bg5 {[%clk 0:02:54]}  Bb7 {[%clk 0:02:51]} 5. Bxf6 {[%clk 0:02:52]}  exf6 {[%clk 0:02:49]} 6. e4 {[%clk 0:02:51]}  Bd6 {[%clk 0:02:48]} 7. c4 {[%clk 0:02:50]}  O-O {[%clk 0:02:48]} 8. cxb5 {[%clk 0:02:50]}  Re8 {[%clk 0:02:46]} 9. Bd3 {[%clk 0:02:50]}  Bxd5 {[%clk 0:02:43]} 10. O-O {[%clk 0:02:49]}  Bb7 {[%clk 0:02:39]} 11. Nc3 {[%clk 0:02:47]}  Bf8 {[%clk 0:02:35]} 12. Qd2 {[%clk 0:02:39]}  d6 {[%clk 0:02:31]} 13. Rad1 {[%clk 0:02:35]}  Nd7 {[%clk 0:02:31]} 14. a4 {[%clk 0:02:31]}  Rc8 {[%clk 0:02:26]} 15. Rfe1 {[%clk 0:02:28]}  Qa5 {[%clk 0:02:26]} 16. b3 {[%clk 0:02:25]}  g6 {[%clk 0:02:20]} 17. Bc4 {[%clk 0:02:25]}  h5 {[%clk 0:02:09]} 18. Bd5 {[%clk 0:02:22]}  Bxd5 {[%clk 0:02:05]} 19. Nxd5 {[%clk 0:02:23]}  Qxd2 {[%clk 0:02:04]} 20. Rxd2 {[%clk 0:02:21]}  c4 {[%clk 0:01:52]} 21. bxc4 {[%clk 0:02:12]}  Rxc4 {[%clk 0:01:52]} 22. Rd4 {[%clk 0:02:10]}  Rxd4 {[%clk 0:01:46]} 23. Nxd4 {[%clk 0:02:11]}  f5 {[%clk 0:01:46]} 24. f3 {[%clk 0:02:09]}  fxe4 {[%clk 0:01:43]} 25. Rxe4 {[%clk 0:02:06]}  Rc8 {[%clk 0:01:42]} 26. Nc6 {[%clk 0:02:06]}  Nc5 {[%clk 0:01:40]} 27. Nde7+ {[%clk 0:02:04]}  Bxe7 {[%clk 0:01:39]} 28. Nxe7+ {[%clk 0:02:04]}  Kg7 {[%clk 0:01:33]} 29. Nxc8 {[%clk 0:02:05]} 1-0


[Site "https://www.chess.com"]

[Event "Titled Tuesday Blitz January 03 Early 2023"]
[White "Gheorghiu, Calin"]
[Black "Broca Jimenez, Fernando"]
[WhiteFideId "1200305"]
[BlackFideId "5104742"]
[WhiteElo "2313"]
[BlackElo "2075"]
[Result "1-0"]
[Round "02"]
[TimeControl "180+2"]
[Date "2023.01.03"]
[WhiteClock "0:00:41"]
[BlackClock "0:00:15"]

1. e4 {[%clk 0:02:56]}  c5 {[%clk 0:02:59]} 2. Nf3 {[%clk 0:02:56]}  d6 {[%clk 0:02:59]} 3. Nc3 {[%clk 0:02:54]}  Nf6 {[%clk 0:02:57]} 4. Bb5+ {[%clk 0:02:54]}  Nbd7 {[%clk 0:02:56]} 5. a4 {[%clk 0:02:54]}  g6 {[%clk 0:02:56]} 6. O-O {[%clk 0:02:53]}  Bg7 {[%clk 0:02:56]} 7. h3 {[%clk 0:02:53]}  O-O {[%clk 0:02:56]} 8. Re1 {[%clk 0:02:53]}  e5 {[%clk 0:02:42]} 9. a5 {[%clk 0:02:51]}  a6 {[%clk 0:02:33]} 10. Bf1 {[%clk 0:02:48]}  Nb8 {[%clk 0:02:31]} 11. Nd5 {[%clk 0:02:42]}  Nc6 {[%clk 0:02:29]} 12. Nb6 {[%clk 0:02:42]}  Rb8 {[%clk 0:02:29]} 13. c3 {[%clk 0:02:11]}  Be6 {[%clk 0:02:24]} 14. d4 {[%clk 0:02:06]}  cxd4 {[%clk 0:02:20]} 15. cxd4 {[%clk 0:02:06]}  exd4 {[%clk 0:02:16]} 16. Nxd4 {[%clk 0:02:01]}  Nxa5 {[%clk 0:02:13]} 17. Nxe6 {[%clk 0:01:56]}  fxe6 {[%clk 0:02:14]} 18. Be3 {[%clk 0:01:49]}  Nc6 {[%clk 0:02:06]} 19. Bc4 {[%clk 0:01:47]}  Qe7 {[%clk 0:01:49]} 20. Bf4 {[%clk 0:01:36]}  Rbd8 {[%clk 0:01:35]} 21. Qb3 {[%clk 0:01:34]}  Rfe8 {[%clk 0:01:30]} 22. Bg5 {[%clk 0:01:21]}  h6 {[%clk 0:01:20]} 23. Bh4 {[%clk 0:01:20]}  Kh7 {[%clk 0:01:19]} 24. f4 {[%clk 0:01:13]}  e5 {[%clk 0:00:49]} 25. Nd5 {[%clk 0:01:02]}  Qf8 {[%clk 0:00:42]} 26. Qxb7 {[%clk 0:00:55]}  Ne7 {[%clk 0:00:27]} 27. fxe5 {[%clk 0:00:54]}  dxe5 {[%clk 0:00:26]} 28. Bxf6 {[%clk 0:00:53]}  Bxf6 {[%clk 0:00:26]} 29. Rf1 {[%clk 0:00:53]}  Rd6 {[%clk 0:00:19]} 30. Rxa6 {[%clk 0:00:44]}  Red8 {[%clk 0:00:15]} 31. Rxf6 {[%clk 0:00:41]}  Rxf6 {[%clk 0:00:15]} 32. Rxf6 {[%clk 0:00:41]} 1-0


[Site "https://www.chess.com"]

[Event "Titled Tuesday Blitz January 03 Early 2023"]
[White "De Souza Sa, Apolo"]
[Black "Namitbir Singh Walia"]
[WhiteFideId "324225390"]
[BlackFideId "35071068"]
[WhiteElo "1929"]
[BlackElo "2364"]
[Result "1-0"]
[Round "02"]
[TimeControl "180+2"]
[Date "2023.01.03"]
[WhiteClock "0:00:15"]
[BlackClock "0:00:02"]

1. d4 {[%clk 0:03:00]}  Nf6 {[%clk 0:02:59]} 2. c4 {[%clk 0:03:01]}  c5 {[%clk 0:02:59]} 3. d5 {[%clk 0:03:01]}  e6 {[%clk 0:02:58]} 4. Nc3 {[%clk 0:03:00]}  d6 {[%clk 0:02:55]} 5. e4 {[%clk 0:03:00]}  g6 {[%clk 0:02:55]} 6. f3 {[%clk 0:02:58]}  Bg7 {[%clk 0:02:52]} 7. Nge2 {[%clk 0:02:58]}  e5 {[%clk 0:02:36]} 8. Be3 {[%clk 0:02:56]}  Na6 {[%clk 0:02:34]} 9. Qd2 {[%clk 0:02:54]}  h5 {[%clk 0:02:30]} 10. h4 {[%clk 0:02:50]}  Nc7 {[%clk 0:02:23]} 11. a4 {[%clk 0:02:48]}  b6 {[%clk 0:02:19]} 12. Bg5 {[%clk 0:02:29]}  a6 {[%clk 0:02:07]} 13. Nc1 {[%clk 0:02:27]}  Bd7 {[%clk 0:02:01]} 14. Bd3 {[%clk 0:02:22]}  Qc8 {[%clk 0:01:51]} 15. N1e2 {[%clk 0:02:18]}  Qb7 {[%clk 0:01:50]} 16. O-O {[%clk 0:02:13]}  O-O {[%clk 0:01:35]} 17. Bh6 {[%clk 0:02:11]}  b5 {[%clk 0:01:30]} 18. Bxg7 {[%clk 0:01:52]}  Kxg7 {[%clk 0:01:29]} 19. f4 {[%clk 0:01:41]}  Ng4 {[%clk 0:00:27]} 20. f5 {[%clk 0:01:39]}  Ne8 {[%clk 0:00:20]} 21. fxg6 {[%clk 0:01:33]}  fxg6 {[%clk 0:00:19]} 22. Rxf8 {[%clk 0:01:33]}  Kxf8 {[%clk 0:00:20]} 23. axb5 {[%clk 0:01:18]}  axb5 {[%clk 0:00:21]} 24. Rxa8 {[%clk 0:01:17]}  Qxa8 {[%clk 0:00:21]} 25. cxb5 {[%clk 0:01:05]}  Kg7 {[%clk 0:00:19]} 26. Ng3 {[%clk 0:00:58]}  Qd8 {[%clk 0:00:16]} 27. Qg5 {[%clk 0:00:55]}  Qxg5 {[%clk 0:00:11]} 28. hxg5 {[%clk 0:00:56]}  Bc8 {[%clk 0:00:06]} 29. b6 {[%clk 0:00:55]}  Ne3 {[%clk 0:00:06]} 30. Bb5 {[%clk 0:00:53]}  Kf7 {[%clk 0:00:06]} 31. Bc6 {[%clk 0:00:48]}  Nc4 {[%clk 0:00:07]} 32. b7 {[%clk 0:00:48]}  Bxb7 {[%clk 0:00:07]} 33. Bxb7 {[%clk 0:00:49]}  Nxb2 {[%clk 0:00:08]} 34. Kf2 {[%clk 0:00:46]}  Nd3+ {[%clk 0:00:07]} 35. Ke3 {[%clk 0:00:42]}  Nf4 {[%clk 0:00:07]} 36. Kf3 {[%clk 0:00:38]}  Nc7 {[%clk 0:00:07]} 37. Nge2 {[%clk 0:00:32]}  Nd3 {[%clk 0:00:06]} 38. g4 {[%clk 0:00:29]}  h4 {[%clk 0:00:05]} 39. Kg2 {[%clk 0:00:27]}  Kg7 {[%clk 0:00:03]} 40. Kh3 {[%clk 0:00:27]}  Nf2+ {[%clk 0:00:02]} 41. Kxh4 {[%clk 0:00:27]}  c4 {[%clk 0:00:02]} 42. Kg3 {[%clk 0:00:26]}  Nd3 {[%clk 0:00:01]} 43. Kf3 {[%clk 0:00:25]}  Nc5 {[%clk 0:00:02]} 44. Bc6 {[%clk 0:00:23]}  N7a6 {[%clk 0:00:02]} 45. Bb5 {[%clk 0:00:23]}  Nb4 {[%clk 0:00:02]} 46. Bxc4 {[%clk 0:00:21]}  Nc2 {[%clk 0:00:03]} 47. Bb5 {[%clk 0:00:19]}  Ne1+ {[%clk 0:00:03]} 48. Ke3 {[%clk 0:00:17]}  Ng2+ {[%clk 0:00:02]} 49. Kf2 {[%clk 0:00:16]}  Nf4 {[%clk 0:00:01]} 50. Nxf4 {[%clk 0:00:15]}  exf4 {[%clk 0:00:02]} 51. Kf3 {[%clk 0:00:15]} 1-0


[Site "https://www.chess.com"]

[Event "Titled Tuesday Blitz January 03 Early 2023"]
[White "Khamdamova, Afruza"]
[Black "Fernandez Hernandez, Gerardo"]
[WhiteFideId "14210444"]
[BlackFideId "2207400"]
[WhiteElo "2162"]
[BlackElo "2181"]
[Result "1-0"]
[Round "02"]
[TimeControl "180+2"]
[Date "2023.01.03"]
[WhiteClock "0:00:21"]
[BlackClock "0:00:01"]

1. e4 {[%clk 0:03:00]}  e6 {[%clk 0:02:59]} 2. d4 {[%clk 0:03:01]}  d5 {[%clk 0:03:00]} 3. Nd2 {[%clk 0:03:01]}  Nc6 {[%clk 0:02:59]} 4. Ngf3 {[%clk 0:03:00]}  Nf6 {[%clk 0:02:56]} 5. e5 {[%clk 0:03:00]}  Nd7 {[%clk 0:02:55]} 6. Bd3 {[%clk 0:03:00]}  f6 {[%clk 0:02:54]} 7. Ng5 {[%clk 0:02:56]}  Ndxe5 {[%clk 0:02:37]} 8. dxe5 {[%clk 0:02:45]}  fxg5 {[%clk 0:02:35]} 9. Qh5+ {[%clk 0:02:44]}  Kd7 {[%clk 0:02:24]} 10. Nf3 {[%clk 0:02:25]}  Be7 {[%clk 0:02:14]} 11. Qf7 {[%clk 0:02:01]}  Qf8 {[%clk 0:01:50]} 12. Qh5 {[%clk 0:01:42]}  g6 {[%clk 0:01:29]} 13. Qg4 {[%clk 0:01:42]}  h5 {[%clk 0:01:28]} 14. Qa4 {[%clk 0:01:40]}  g4 {[%clk 0:01:18]} 15. Nd4 {[%clk 0:01:40]}  Bc5 {[%clk 0:01:06]} 16. Be3 {[%clk 0:01:19]}  Bxd4 {[%clk 0:01:05]} 17. Bxd4 {[%clk 0:01:18]}  Qf4 {[%clk 0:00:53]} 18. c3 {[%clk 0:01:08]}  Rf8 {[%clk 0:00:38]} 19. O-O {[%clk 0:01:06]}  g5 {[%clk 0:00:29]} 20. Bb5 {[%clk 0:01:03]}  a6 {[%clk 0:00:21]} 21. Rad1 {[%clk 0:00:53]}  Rb8 {[%clk 0:00:13]} 22. Bxc6+ {[%clk 0:00:46]}  bxc6 {[%clk 0:00:14]} 23. c4 {[%clk 0:00:46]}  Bb7 {[%clk 0:00:04]} 24. cxd5 {[%clk 0:00:34]}  exd5 {[%clk 0:00:05]} 25. Rfe1 {[%clk 0:00:31]}  Ke6 {[%clk 0:00:05]} 26. Qc2 {[%clk 0:00:28]}  Rbe8 {[%clk 0:00:04]} 27. Qg6+ {[%clk 0:00:28]}  Kd7 {[%clk 0:00:04]} 28. e6+ {[%clk 0:00:27]}  Kc8 {[%clk 0:00:04]} 29. e7 {[%clk 0:00:26]}  Rg8 {[%clk 0:00:03]} 30. Qxh5 {[%clk 0:00:24]}  Kb8 {[%clk 0:00:02]} 31. Bc5 {[%clk 0:00:24]}  Bc8 {[%clk 0:00:02]} 32. Qh6 {[%clk 0:00:22]}  Bf5 {[%clk 0:00:02]} 33. Qxc6 {[%clk 0:00:21]}  Be4 {[%clk 0:00:01]} 34. Re3 {[%clk 0:00:21]} 1-0


[Site "https://www.chess.com"]

[Event "Titled Tuesday Blitz January 03 Early 2023"]
[White "Ardila, Oscar Humberto"]
[Black "Redzisz, Michal"]
[WhiteFideId "4404742"]
[BlackFideId "21816107"]
[WhiteElo "1982"]
[BlackElo "2269"]
[Result "1-0"]
[Round "02"]
[TimeControl "180+2"]
[Date "2023.01.03"]
[WhiteClock "0:01:09"]
[BlackClock "0:00:24"]

1. d4 {[%clk 0:02:59]}  Nf6 {[%clk 0:02:56]} 2. Nf3 {[%clk 0:02:59]}  g6 {[%clk 0:02:54]} 3. c4 {[%clk 0:02:59]}  Bg7 {[%clk 0:02:54]} 4. Nc3 {[%clk 0:02:59]}  d5 {[%clk 0:02:54]} 5. e3 {[%clk 0:02:59]}  O-O {[%clk 0:02:53]} 6. Be2 {[%clk 0:03:00]}  dxc4 {[%clk 0:02:54]} 7. Bxc4 {[%clk 0:03:00]}  c5 {[%clk 0:02:54]} 8. O-O {[%clk 0:02:59]}  Nc6 {[%clk 0:02:50]} 9. dxc5 {[%clk 0:02:59]}  Qa5 {[%clk 0:02:46]} 10. Qe2 {[%clk 0:02:52]}  Qxc5 {[%clk 0:02:45]} 11. Rd1 {[%clk 0:02:52]}  Bg4 {[%clk 0:02:43]} 12. Bb3 {[%clk 0:02:50]}  Rad8 {[%clk 0:02:38]} 13. h3 {[%clk 0:02:49]}  Bxf3 {[%clk 0:02:22]} 14. Qxf3 {[%clk 0:02:49]}  b5 {[%clk 0:02:18]} 15. Bd2 {[%clk 0:02:45]}  Ne5 {[%clk 0:02:15]} 16. Qb7 {[%clk 0:02:39]}  Rb8 {[%clk 0:02:01]} 17. Qa6 {[%clk 0:02:35]}  Nd3 {[%clk 0:01:35]} 18. Rab1 {[%clk 0:02:15]}  Qf5 {[%clk 0:01:15]} 19. Be1 {[%clk 0:02:07]}  Rfd8 {[%clk 0:01:07]} 20. Qxa7 {[%clk 0:01:52]}  b4 {[%clk 0:01:03]} 21. Ne2 {[%clk 0:01:48]}  Nxe1 {[%clk 0:00:44]} 22. Rxe1 {[%clk 0:01:45]}  Ne4 {[%clk 0:00:45]} 23. f3 {[%clk 0:01:26]}  Nd2 {[%clk 0:00:43]} 24. Rbd1 {[%clk 0:01:22]}  Qg5 {[%clk 0:00:28]} 25. Rxd2 {[%clk 0:01:09]}  Rxd2 {[%clk 0:00:23]} 26. Qxb8+ {[%clk 0:01:09]}  Bf8 {[%clk 0:00:24]} 27. Qf4 {[%clk 0:01:09]} 1-0


[Site "https://www.chess.com"]

[Event "Titled Tuesday Blitz January 03 Early 2023"]
[White "Thomas, Anysia"]
[Black "TheKnightOfBosnia"]
[WhiteFideId "670472"]
[WhiteElo "2147"]
[BlackElo "2481"]
[Result "0-1"]
[Round "02"]
[TimeControl "180+2"]
[Date "2023.01.03"]
[WhiteClock "0:00:11"]
[BlackClock "0:01:51"]

1. d4 {[%clk 0:03:00]}  Nf6 {[%clk 0:03:00]} 2. c4 {[%clk 0:02:44]}  e6 {[%clk 0:03:00]} 3. Nf3 {[%clk 0:02:44]}  Bb4+ {[%clk 0:03:00]} 4. Bd2 {[%clk 0:02:43]}  a5 {[%clk 0:03:00]} 5. g3 {[%clk 0:02:43]}  O-O {[%clk 0:03:00]} 6. Bg2 {[%clk 0:02:43]}  d5 {[%clk 0:03:00]} 7. O-O {[%clk 0:02:42]}  dxc4 {[%clk 0:03:01]} 8. Qc2 {[%clk 0:02:34]}  b5 {[%clk 0:02:59]} 9. a4 {[%clk 0:02:32]}  Bxd2 {[%clk 0:02:58]} 10. Nbxd2 {[%clk 0:02:31]}  c6 {[%clk 0:02:57]} 11. b3 {[%clk 0:02:25]}  cxb3 {[%clk 0:02:43]} 12. Nxb3 {[%clk 0:02:24]}  b4 {[%clk 0:02:43]} 13. Ne5 {[%clk 0:02:19]}  Bd7 {[%clk 0:02:42]} 14. Rac1 {[%clk 0:02:14]}  Nd5 {[%clk 0:02:34]} 15. Nc5 {[%clk 0:02:12]}  Be8 {[%clk 0:02:32]} 16. Rfd1 {[%clk 0:02:03]}  Na6 {[%clk 0:02:23]} 17. e4 {[%clk 0:01:41]}  Nc3 {[%clk 0:02:19]} 18. Rd3 {[%clk 0:01:31]}  Nxc5 {[%clk 0:02:18]} 19. dxc5 {[%clk 0:01:30]}  Qe7 {[%clk 0:02:17]} 20. Rd6 {[%clk 0:01:27]}  Rc8 {[%clk 0:02:09]} 21. Nc4 {[%clk 0:01:24]}  Qg5 {[%clk 0:01:54]} 22. Rd2 {[%clk 0:00:16]}  Qxc5 {[%clk 0:01:52]} 23. Re1 {[%clk 0:00:11]}  Qxc4 {[%clk 0:01:51]} 0-1


[Site "https://www.chess.com"]

[Event "Titled Tuesday Blitz January 03 Early 2023"]
[White "Donskov, Anatoly"]
[Black "Fabris, Alberto"]
[WhiteFideId "24143413"]
[BlackFideId "801348"]
[WhiteElo "2279"]
[BlackElo "2230"]
[Result "0-1"]
[Round "02"]
[TimeControl "180+2"]
[Date "2023.01.03"]
[WhiteClock "0:00:03"]
[BlackClock "0:00:42"]

1. e4 {[%clk 0:02:56]}  c5 {[%clk 0:02:59]} 2. Nf3 {[%clk 0:02:46]}  d6 {[%clk 0:02:59]} 3. d4 {[%clk 0:02:46]}  cxd4 {[%clk 0:03:00]} 4. Nxd4 {[%clk 0:02:47]}  Nf6 {[%clk 0:03:00]} 5. Nc3 {[%clk 0:02:47]}  a6 {[%clk 0:03:01]} 6. f4 {[%clk 0:02:45]}  e6 {[%clk 0:03:00]} 7. Qf3 {[%clk 0:02:45]}  Qc7 {[%clk 0:02:57]} 8. Be3 {[%clk 0:02:44]}  Be7 {[%clk 0:02:56]} 9. g4 {[%clk 0:02:41]}  b5 {[%clk 0:02:50]} 10. g5 {[%clk 0:02:38]}  Nfd7 {[%clk 0:02:49]} 11. a3 {[%clk 0:02:36]}  Bb7 {[%clk 0:02:45]} 12. Bd3 {[%clk 0:02:36]}  Nc6 {[%clk 0:02:44]} 13. Qh3 {[%clk 0:02:34]}  O-O-O {[%clk 0:02:41]} 14. O-O-O {[%clk 0:02:30]}  Nc5 {[%clk 0:02:33]} 15. Kb1 {[%clk 0:02:29]}  Kb8 {[%clk 0:02:29]} 16. Qg2 {[%clk 0:02:19]}  b4 {[%clk 0:02:26]} 17. axb4 {[%clk 0:02:12]}  Nxb4 {[%clk 0:02:25]} 18. Rhe1 {[%clk 0:01:59]}  d5 {[%clk 0:02:21]} 19. e5 {[%clk 0:01:53]}  Qa5 {[%clk 0:02:14]} 20. Qf2 {[%clk 0:01:41]}  Rc8 {[%clk 0:02:03]} 21. f5 {[%clk 0:01:23]}  Ne4 {[%clk 0:01:39]} 22. Bxe4 {[%clk 0:01:17]}  dxe4 {[%clk 0:01:40]} 23. Nb3 {[%clk 0:01:12]}  Qc7 {[%clk 0:01:33]} 24. f6 {[%clk 0:01:09]}  gxf6 {[%clk 0:01:32]} 25. gxf6 {[%clk 0:01:09]}  Bf8 {[%clk 0:01:27]} 26. Re2 {[%clk 0:00:42]}  h5 {[%clk 0:01:09]} 27. Ba7+ {[%clk 0:00:30]}  Ka8 {[%clk 0:01:09]} 28. Na4 {[%clk 0:00:31]}  Nd5 {[%clk 0:01:04]} 29. Rxd5 {[%clk 0:00:30]}  Bxd5 {[%clk 0:01:00]} 30. Nb6+ {[%clk 0:00:31]}  Kxa7 {[%clk 0:00:57]} 31. Nxc8+ {[%clk 0:00:14]}  Kb7 {[%clk 0:00:53]} 32. Ne7 {[%clk 0:00:08]}  Bxe7 {[%clk 0:00:50]} 33. fxe7 {[%clk 0:00:09]}  Qxe7 {[%clk 0:00:48]} 34. Na5+ {[%clk 0:00:09]}  Ka8 {[%clk 0:00:47]} 35. Qb6 {[%clk 0:00:08]}  Qa7 {[%clk 0:00:45]} 36. Qd6 {[%clk 0:00:06]}  Qg1+ {[%clk 0:00:43]} 37. Re1 {[%clk 0:00:03]}  Qxe1# {[%clk 0:00:42]} 0-1


[Site "https://www.chess.com"]

[Event "Titled Tuesday Blitz January 03 Early 2023"]
[White "Gonzalez, Francisco Silva"]
[Black "Osiecki, Stanislaw"]
[WhiteFideId "1512285"]
[BlackFideId "1102990"]
[WhiteElo "2021"]
[BlackElo "2055"]
[Result "1/2-1/2"]
[Round "02"]
[TimeControl "180+2"]
[Date "2023.01.03"]
[WhiteClock "0:02:03"]
[BlackClock "0:00:11"]

1. d4 {[%clk 0:03:00]}  Nf6 {[%clk 0:02:57]} 2. c4 {[%clk 0:03:00]}  d6 {[%clk 0:02:57]} 3. Nc3 {[%clk 0:03:00]}  g6 {[%clk 0:02:58]} 4. e4 {[%clk 0:03:00]}  Bg7 {[%clk 0:02:58]} 5. f3 {[%clk 0:03:00]}  O-O {[%clk 0:02:57]} 6. Be3 {[%clk 0:02:59]}  e5 {[%clk 0:02:57]} 7. d5 {[%clk 0:02:59]}  a5 {[%clk 0:02:56]} 8. Bd3 {[%clk 0:02:58]}  Nh5 {[%clk 0:02:56]} 9. Nge2 {[%clk 0:02:58]}  f5 {[%clk 0:02:54]} 10. Qd2 {[%clk 0:02:58]}  f4 {[%clk 0:02:53]} 11. Bf2 {[%clk 0:02:57]}  Na6 {[%clk 0:02:52]} 12. O-O-O {[%clk 0:02:57]}  g5 {[%clk 0:02:52]} 13. h3 {[%clk 0:02:56]}  Bd7 {[%clk 0:02:50]} 14. a3 {[%clk 0:02:55]}  Rb8 {[%clk 0:02:48]} 15. Nb5 {[%clk 0:02:53]}  Bxb5 {[%clk 0:02:46]} 16. cxb5 {[%clk 0:02:52]}  Nc5 {[%clk 0:02:46]} 17. Bxc5 {[%clk 0:02:51]}  dxc5 {[%clk 0:02:46]} 18. Qxa5 {[%clk 0:02:51]}  Rf7 {[%clk 0:02:40]} 19. Bc4 {[%clk 0:02:49]}  Qd6 {[%clk 0:02:40]} 20. Qa7 {[%clk 0:02:44]}  Rff8 {[%clk 0:02:39]} 21. Nc3 {[%clk 0:02:40]}  b6 {[%clk 0:02:29]} 22. Kc2 {[%clk 0:02:36]}  Ng3 {[%clk 0:02:29]} 23. Rhe1 {[%clk 0:02:34]}  h5 {[%clk 0:02:24]} 24. Ra1 {[%clk 0:02:32]}  g4 {[%clk 0:01:40]} 25. hxg4 {[%clk 0:02:30]}  hxg4 {[%clk 0:01:40]} 26. fxg4 {[%clk 0:02:30]}  Bf6 {[%clk 0:01:40]} 27. Rh1 {[%clk 0:02:27]}  Kg7 {[%clk 0:01:40]} 28. Rh3 {[%clk 0:02:26]}  Rh8 {[%clk 0:01:39]} 29. a4 {[%clk 0:02:22]}  Rxh3 {[%clk 0:01:38]} 30. Qxb8 {[%clk 0:02:21]}  Rh2 {[%clk 0:01:30]} 31. Kd3 {[%clk 0:02:15]}  Rxg2 {[%clk 0:01:29]} 32. Qc8 {[%clk 0:02:11]}  f3 {[%clk 0:01:16]} 33. g5 {[%clk 0:02:07]}  Bxg5 {[%clk 0:01:09]} 34. Nd1 {[%clk 0:02:06]}  Rd2+ {[%clk 0:01:05]} 35. Kc3 {[%clk 0:02:06]}  Ne2+ {[%clk 0:01:02]} 36. Kb3 {[%clk 0:02:04]}  Nd4+ {[%clk 0:01:01]} 37. Kc3 {[%clk 0:02:03]}  Rc2+ {[%clk 0:00:51]} 38. Kd3 {[%clk 0:02:03]}  Rd2+ {[%clk 0:00:51]} 39. Kc3 {[%clk 0:02:03]}  Rc2+ {[%clk 0:00:11]} 40. Kd3 {[%clk 0:02:03]}  Rd2+ {[%clk 0:00:11]} 41. Kc3 {[%clk 0:02:03]} 1/2-1/2


[Site "https://www.chess.com"]

[Event "Titled Tuesday Blitz January 03 Early 2023"]
[White "Mekhane, Adam"]
[Black "Johnson, Ben"]
[WhiteFideId "36050601"]
[BlackFideId "2010917"]
[WhiteElo "2280"]
[BlackElo "1961"]
[Result "1-0"]
[Round "02"]
[TimeControl "180+2"]
[Date "2023.01.03"]
[WhiteClock "0:02:00"]
[BlackClock "0:02:09"]

1. b3 {[%clk 0:02:57]}  e5 {[%clk 0:02:58]} 2. Bb2 {[%clk 0:02:58]}  Nc6 {[%clk 0:02:59]} 3. e3 {[%clk 0:02:57]}  d5 {[%clk 0:02:57]} 4. Bb5 {[%clk 0:02:56]}  Bd6 {[%clk 0:02:53]} 5. Nf3 {[%clk 0:02:54]}  Qe7 {[%clk 0:02:43]} 6. d4 {[%clk 0:02:48]}  e4 {[%clk 0:02:36]} 7. Ne5 {[%clk 0:02:41]}  Bxe5 {[%clk 0:02:36]} 8. dxe5 {[%clk 0:02:36]}  Bd7 {[%clk 0:02:36]} 9. Qxd5 {[%clk 0:02:34]}  a6 {[%clk 0:02:24]} 10. Ba3 {[%clk 0:02:03]}  Qxe5 {[%clk 0:02:09]} 11. Bxc6 {[%clk 0:02:00]} 1-0


[Site "https://www.chess.com"]

[Event "Titled Tuesday Blitz January 03 Early 2023"]
[White "Krienke, Makaio"]
[Black "Guevara Sanchez, Erick Marvin"]
[WhiteFideId "2038854"]
[BlackFideId "6700136"]
[WhiteElo "2115"]
[BlackElo "2073"]
[Result "1-0"]
[Round "02"]
[TimeControl "180+2"]
[Date "2023.01.03"]
[WhiteClock "0:01:13"]
[BlackClock "0:01:16"]

1. e4 {[%clk 0:03:00]}  c5 {[%clk 0:02:59]} 2. Nf3 {[%clk 0:03:00]}  Nc6 {[%clk 0:02:59]} 3. d4 {[%clk 0:03:01]}  cxd4 {[%clk 0:02:59]} 4. Nxd4 {[%clk 0:03:02]}  e5 {[%clk 0:03:00]} 5. Nb5 {[%clk 0:03:01]}  a6 {[%clk 0:03:00]} 6. N5c3 {[%clk 0:03:00]}  Nf6 {[%clk 0:02:59]} 7. Bg5 {[%clk 0:03:00]}  Bb4 {[%clk 0:02:58]} 8. a3 {[%clk 0:02:57]}  Qa5 {[%clk 0:02:49]} 9. Bxf6 {[%clk 0:02:54]}  gxf6 {[%clk 0:02:49]} 10. Bc4 {[%clk 0:02:31]}  b5 {[%clk 0:02:44]} 11. Bd5 {[%clk 0:02:14]}  Bb7 {[%clk 0:02:33]} 12. O-O {[%clk 0:02:13]}  O-O-O {[%clk 0:02:26]} 13. Bxf7 {[%clk 0:01:50]}  Ne7 {[%clk 0:02:09]} 14. Nd5 {[%clk 0:01:48]}  Nxd5 {[%clk 0:02:03]} 15. Bxd5 {[%clk 0:01:48]}  Be7 {[%clk 0:01:59]} 16. Bxb7+ {[%clk 0:01:43]}  Kxb7 {[%clk 0:01:59]} 17. Qd5+ {[%clk 0:01:44]}  Kb8 {[%clk 0:01:57]} 18. c4 {[%clk 0:01:43]}  Rhg8 {[%clk 0:01:54]} 19. Nc3 {[%clk 0:01:39]}  bxc4 {[%clk 0:01:47]} 20. Qxa5 {[%clk 0:01:39]}  Rg4 {[%clk 0:01:42]} 21. Qxa6 {[%clk 0:01:31]}  Rdg8 {[%clk 0:01:41]} 22. g3 {[%clk 0:01:31]}  h5 {[%clk 0:01:40]} 23. Nb5 {[%clk 0:01:29]}  Bc5 {[%clk 0:01:37]} 24. Rad1 {[%clk 0:01:17]}  h4 {[%clk 0:01:36]} 25. Rxd7 {[%clk 0:01:15]}  hxg3 {[%clk 0:01:16]} 26. Qb7# {[%clk 0:01:13]} 1-0


[Site "https://www.chess.com"]